fUST/lending_fUST_20260109
["ID","MTS","AMOUNT","RATE_DAILY","PERIOD"]
[401040330,1767892239149,-1013.97972066,9.359e-05,2]
[401040331,1767892239159,-1013.97972066,9.359e-05,2]
[401040332,1767892239169,-1129.86311731,9.359e-05,2]
[401040333,1767892239179,-1129.86311731,9.359e-05,2]
[401040334,1767892239189,-1129.86311731,9.359e-05,2]
[401040335,1767892239198,-1129.86311731,9.359e-05,2]
[401040336,1767892239208,-1129.86311731,9.359e-05,2]
[401040337,1767892239217,-1129.86311731,9.359e-05,2]
[401040338,1767892239227,-485.9310174,9.36e-05,2]
[401040339,1767892239236,-4813.4153723,9.36e-05,2]
[401040340,1767892239246,-500.0,9.36e-05,2]
[401040341,1767892239256,-500.0,9.634e-05,2]
[401040342,1767892239269,-300.0,9.648e-05,2]
[401040343,1767892239278,-300.0,9.648e-05,2]
[401040344,1767892239287,-300.0,9.648e-05,2]
[401040345,1767892239297,-300.0,9.648e-05,2]
[401040346,1767892239309,-300.0,9.648e-05,2]
[401040347,1767892239318,-300.0,9.648e-05,2]
[401040348,1767892239327,-300.0,9.648e-05,2]
[401040349,1767892239338,-300.0,9.648e-05,2]
[401040350,1767892239349,-300.0,9.648e-05,2]
[401040351,1767892239359,-300.0,9.648e-05,2]
[401040352,1767892239368,-300.0,9.648e-05,2]
[401040353,1767892239378,-300.0,9.648e-05,2]
[401040354,1767892239388,-300.0,9.648e-05,2]
[401040355,1767892239397,-300.0,9.648e-05,2]
[401040356,1767892239407,-300.0,9.648e-05,2]
[401040357,1767892239417,-600.0,9.648e-05,2]
[401040358,1767892239427,-500.0,9.908e-05,2]
[401040359,1767892239437,-273.43,0.0001,2]
[401040360,1767892239446,-151.0,0.0001,2]
[401040361,1767892239456,-151.0,0.0001,2]
[401040362,1767892239465,-151.0,0.0001,2]
[401040363,1767892239474,-151.0,0.0001,2]
[401040364,1767892239483,-151.0,0.0001,2]
[401040365,1767892239493,-151.0,0.0001,2]
[401040366,1767892239502,-151.0,0.0001,2]
[401040367,1767892239512,-172.78749649,0.0001,2]
[401040368,1767892239521,-500.0,0.00010182,2]
[401040369,1767892239531,-420.0,0.00010184,2]
[401040370,1767892239543,-1680.0,0.00010184,2]
[401040371,1767892239553,-1074.0181428,0.00010216,2]
[401040372,1767892239563,-239.6458402,0.00010407,2]
[401040373,1767892239573,-533.59953373,0.00010456,2]
[401040374,1767892239582,-4608.6631832,0.00010469,2]
[401040375,1767892239591,-7876.9311068,0.00010486,2]
[401040376,1767892239603,-720.0,0.00010613,2]
[401040377,1767892239613,-1069.18051989,0.0001067,2]
[401040378,1767892239622,-587.0,0.00011202,2]
[401040379,1767892239632,-2351.0,0.00011202,2]
[401040380,1767892239642,-608.53384718,0.00011357,2]
[401040381,1767892239651,-151.0,0.000114,2]
[401040382,1767892239661,-151.0,0.000114,2]
[401040383,1767892239671,-151.0,0.000115,2]
[401040384,1767892239681,-151.0,0.000115,2]
[401040385,1767892239690,-151.0,0.000116,2]
[401040386,1767892239700,-352122.046067,0.000116,2]
[401040387,1767892239709,-4608.6631832,0.00011638,2]
[401040388,1767892239719,-864.0,0.00011674,2]
[401040389,1767892239728,-10141.41076664,0.00011982,2]
[401040390,1767892239737,-1005.01380698,0.00011982,2]
[401040391,1767892239747,-151.0,0.00012,2]
[401040392,1767892239757,-2180.95,0.00012229,2]
[401040393,1767892239766,-151.0,0.000123,2]
[401040394,1767892239970,-823.0,0.00012322,2]
[401040395,1767892239980,-3292.0,0.00012322,2]
[401040396,1767892239990,-284.72,0.00012329,2]
[401040397,1767892240000,-237.27,0.00012329,2]
[401040398,1767892240010,-1952.4,0.00012329,2]
[401040399,1767892240019,-1627.0,0.00012329,2]
[401040400,1767892240029,-1639.22,0.00012329,2]
[401040401,1767892240038,-3054.05,0.00012329,2]
[401040402,1767892240048,-2545.04,0.00012329,2]
[401040403,1767892240058,-2846.73,0.00012329,2]
[401040404,1767892240067,-4112.77,0.00012329,2]
[401040405,1767892240076,-5053.54,0.00012329,2]
[401040406,1767892240086,-4211.28,0.00012329,2]
[401040407,1767892240096,-5112.48,0.00012329,2]
[401040408,1767892240106,-4260.4,0.00012329,2]
[401040409,1767892240115,-4087.2,0.00012329,2]
[401040410,1767892240125,-3406.0,0.00012329,2]
[401040411,1767892240135,-2838.33,0.00012329,2]
[401040412,1767892240145,-2365.28,0.00012329,2]
[401040413,1767892240154,-1971.06,0.00012329,2]
[401040414,1767892240164,-1642.55,0.00012329,2]
[401040415,1767892240174,-1368.79,0.00012329,2]
[401040416,1767892240184,-1368.79,0.00012329,2]
[401040417,1767892240193,-912.53,0.00012329,2]
[401040418,1767892240202,-760.44,0.00012329,2]
[401040419,1767892240212,-633.7,0.00012329,2]
[401040420,1767892240221,-528.09,0.00012329,2]
[401040422,1767892240231,-440.07,0.00012329,2]
[401040423,1767892240240,-366.73,0.00012329,2]
[401040425,1767892240249,-305.6,0.00012329,2]
[401040426,1767892240258,-254.67,0.00012329,2]
[401040427,1767892240271,-212.23,0.00012329,2]
[401040428,1767892240280,-176.85,0.00012329,2]
[401040429,1767892240289,-884.3,0.00012329,2]
[401040430,1767892240299,-250.0,0.00012362,2]
[401040431,1767892240309,-151.0,0.000126,2]
[401040432,1767892240319,-4608.6631832,0.00012808,2]
[401040433,1767892240328,-1000.0,0.00012842,2]
[401040434,1767892240339,-151.0,0.000129,2]
[401040435,1767892240357,-7140.42224514,0.00013,2]
[401040436,1767892240367,-151.0,0.000132,2]
[401040437,1767892240378,-500.0,0.00013273,2]
[401040438,1767892240388,-500.0,0.00013273,2]
[401040439,1767892240398,-500.0,0.00013273,2]
[401040440,1767892240407,-500.0,0.00013273,2]
[401040441,1767892240417,-500.0,0.00013273,2]
[401040442,1767892240427,-586.21143791,0.00013273,2]
[401040443,1767892240436,-500.0,0.00013273,2]
[401040444,1767892240446,-500.53895584,0.00013273,2]
[401040445,1767892240455,-500.0,0.00013273,2]
[401040446,1767892240464,-500.44041054,0.00013273,2]
[401040447,1767892240474,-500.0,0.00013273,2]
[401040448,1767892240483,-500.0,0.00013273,2]
[401040449,1767892240493,-500.20430941,0.00013273,2]
[401040450,1767892240502,-500.0,0.00013273,2]
[401040451,1767892240511,-500.0,0.00013273,2]
[401040452,1767892240520,-500.0,0.00013273,2]
[401040453,1767892240530,-500.0,0.00013273,2]
[401040454,1767892240540,-500.0,0.00013273,2]
[401040455,1767892240550,-500.0,0.00013273,2]
[401040456,1767892240560,-500.47534245,0.00013273,2]
[401040457,1767892240570,-611.12436165,0.00013273,2]
[401040458,1767892240579,-500.67584896,0.00013273,2]
[401040459,1767892240590,-217.99026378,0.00013273,2]
[401040460,1767892240603,-500.0,0.00013273,2]
[401040461,1767892240613,-500.0,0.00013273,2]
[401040462,1767892240623,-500.0,0.00013273,2]
[401040463,1767892240633,-500.0,0.00013273,2]
[401040464,1767892240642,-500.0,0.00013273,2]
[401040465,1767892240652,-500.95990622,0.00013273,2]
[401040467,1767892240662,-500.0,0.00013273,2]
[401040468,1767892240672,-500.0,0.00013273,2]
[401040470,1767892240681,-500.0,0.00013273,2]
[401040471,1767892240691,-500.0,0.00013273,2]
[401040472,1767892240700,-500.0,0.00013273,2]
[401040473,1767892240709,-500.0,0.00013273,2]
[401040474,1767892240718,-500.0,0.00013273,2]
[401040475,1767892240727,-500.0,0.00013273,2]
[401040476,1767892240736,-521.18042972,0.00013273,2]
[401040477,1767892240745,-500.0,0.00013273,2]
[401040478,1767892240755,-500.0,0.00013273,2]
[401040479,1767892240763,-500.0,0.00013273,2]
[401040480,1767892240772,-500.0,0.00013273,2]
[401040481,1767892240782,-500.0,0.00013273,2]
[401040482,1767892240791,-500.0,0.00013273,2]
[401040483,1767892240800,-500.0,0.00013273,2]
[401040484,1767892240809,-500.0,0.00013273,2]
[401040485,1767892240818,-500.0,0.00013273,2]
[401040486,1767892240827,-500.0,0.00013273,2]
[401040487,1767892240836,-500.0,0.00013273,2]
[401040488,1767892240845,-500.65816552,0.00013273,2]
[401040489,1767892240854,-205.95651824,0.00013273,2]
[401040490,1767892240863,-500.0,0.00013273,2]
[401040491,1767892240871,-500.0,0.00013273,2]
[401040492,1767892240880,-500.0,0.00013273,2]
[401040493,1767892240889,-151.0,0.000133,2]
[401040494,1767892240898,-701.36104421,0.00013357,2]
[401040495,1767892240908,-151.0,0.000134,2]
[401040496,1767892240917,-1152.0,0.00013554,2]
[401040497,1767892240926,-4609.0,0.00013554,2]
[401040498,1767892240935,-3673.62214848,0.00013598,2]
[401040499,1767892240945,-151.0,0.000136,2]
[401040500,1767892240954,-300.0,0.00013673,2]
[401040501,1767892240963,-500.0,0.00013698,2]
[401040502,1767892240973,-524.43930291,0.00013698,2]
[401040503,1767892240981,-500.0,0.00013698,2]
[401040504,1767892240991,-500.0,0.00013698,2]
[401040505,1767892240999,-245.21192349,0.00013698,2]
[401040506,1767892241008,-500.0,0.00013698,2]
[401040507,1767892241017,-500.0,0.00013698,2]
[401040508,1767892241027,-603.61684328,0.00013698,2]
[401040509,1767892241035,-500.0,0.00013698,2]
[401040510,1767892241044,-516.40835444,0.00013698,2]
[401040511,1767892241053,-500.0,0.00013698,2]
[401040512,1767892241062,-500.0,0.00013698,2]
[401040513,1767892241071,-500.0,0.00013698,2]
[401040514,1767892241080,-500.0,0.00013698,2]
[401040515,1767892241090,-500.0,0.00013698,2]
[401040516,1767892241100,-500.0,0.00013698,2]
[401040517,1767892241109,-500.0,0.00013698,2]
[401040518,1767892241119,-500.0,0.00013698,2]
[401040519,1767892241128,-500.0,0.00013698,2]
[401040520,1767892241136,-500.0,0.00013698,2]
[401040521,1767892241145,-500.0,0.00013698,2]
[401040522,1767892241154,-500.0,0.00013698,2]
[401040523,1767892241163,-500.0,0.00013698,2]
[401040524,1767892241172,-500.0,0.00013698,2]
[401040525,1767892241180,-500.0,0.00013698,2]
[401040526,1767892241189,-500.0,0.00013698,2]
[401040527,1767892241199,-500.0,0.00013698,2]
[401040528,1767892241207,-500.0,0.00013698,2]
[401040529,1767892241216,-391.55816214,0.00013698,2]
[401040530,1767892241225,-567.14710405,0.00013698,2]
[401040531,1767892241234,-2589.26,0.00013698,2]
[401040532,1767892241243,-2589.26,0.00013698,2]
[401040533,1767892241252,-2589.26,0.00013698,2]
[401040534,1767892241263,-2589.26,0.00013698,2]
[401040536,1767892241273,-2589.26,0.00013698,2]
[401040537,1767892241283,-2589.26,0.00013698,2]
[401040538,1767892241292,-2589.26,0.00013698,2]
[401040539,1767892241301,-2589.26,0.00013698,2]
[401040541,1767892241311,-2589.26,0.00013698,2]
[401040542,1767892241320,-2589.26,0.00013698,2]
[401040544,1767892241329,-2589.26,0.00013698,2]
[401040546,1767892241339,-2589.26,0.00013698,2]
[401040548,1767892241351,-2589.26,0.00013698,2]
[401040550,1767892241360,-500.0,0.00013698,2]
[401040552,1767892241369,-500.0,0.00013698,2]
[401040553,1767892241379,-500.0,0.00013698,2]
[401040555,1767892241388,-181.48973521,0.00013698,2]
[401040556,1767892241399,-500.0,0.00013698,2]
[401040558,1767892241408,-500.0,0.00013698,2]
[401040559,1767892241418,-552.51757944,0.00013698,2]
[401040561,1767892241428,-500.0,0.00013698,2]
[401040563,1767892241437,-500.0,0.00013698,2]
[401040565,1767892241446,-500.0,0.00013698,2]
[401040567,1767892241455,-500.0,0.00013698,2]
[401040569,1767892241464,-564.27616165,0.00013698,2]
[401040571,1767892241473,-500.0,0.00013698,2]
[401040573,1767892241482,-417.40500511,0.00013698,2]
[401040575,1767892241492,-500.0,0.00013698,2]
[401040577,1767892241502,-500.0,0.00013698,2]
[401040579,1767892241511,-500.0,0.00013698,2]
[401040581,1767892241520,-500.0,0.00013698,2]
[401040583,1767892241530,-500.0,0.00013698,2]
[401040585,1767892241539,-500.0,0.00013698,2]
[401040587,1767892241548,-183.29577102,0.00013698,2]
[401040589,1767892241558,-2592.58,0.00013698,2]
[401040591,1767892241568,-2592.58,0.00013698,2]
[401040593,1767892241577,-2592.58,0.00013698,2]
[401040595,1767892241586,-2592.58,0.00013698,2]
[401040597,1767892241595,-2592.58,0.00013698,2]
[401040599,1767892241607,-2592.58,0.00013698,2]
[401040601,1767892241616,-2592.58,0.00013698,2]
[401040603,1767892241625,-2592.58,0.00013698,2]
[401040605,1767892241635,-2592.58,0.00013698,2]
[401040607,1767892241646,-2592.58,0.00013698,2]
[401040609,1767892241655,-2592.58,0.00013698,2]
[401040611,1767892241665,-2592.58,0.00013698,2]
[401040613,1767892241675,-2592.58,0.00013698,2]
[401040615,1767892241685,-2592.58,0.00013698,2]
[401040617,1767892241694,-2592.58,0.00013698,2]
[401040619,1767892241703,-2592.58,0.00013698,2]
[401040621,1767892241712,-2592.58,0.00013698,2]
[401040623,1767892241722,-2592.58,0.00013698,2]
[401040625,1767892241731,-2592.58,0.00013698,2]
[401040627,1767892241740,-2592.58,0.00013698,2]
[401040629,1767892241750,-2592.58,0.00013698,2]
[401040631,1767892241759,-2592.58,0.00013698,2]
[401040633,1767892241768,-2592.58,0.00013698,2]
[401040635,1767892241778,-2592.7833396,0.00013698,2]
[401040637,1767892241787,-1358.36,0.00013698,2]
[401040639,1767892241796,-1358.36,0.00013698,2]
[401040641,1767892241805,-1358.36,0.00013698,2]
[401040643,1767892241814,-1358.36,0.00013698,2]
[401040645,1767892241823,-1358.36,0.00013698,2]
[401040647,1767892241832,-1358.36,0.00013698,2]
[401040649,1767892241841,-1358.36,0.00013698,2]
[401040651,1767892241853,-1358.36,0.00013698,2]
[401040653,1767892241863,-1358.36,0.00013698,2]
[401040655,1767892241872,-1358.36,0.00013698,2]
[401040657,1767892241881,-1358.36,0.00013698,2]
[401040659,1767892241890,-1358.36,0.00013698,2]
[401040661,1767892241899,-1358.36,0.00013698,2]
[401040663,1767892241908,-1358.36,0.00013698,2]
[401040665,1767892241917,-1358.36,0.00013698,2]
[401040667,1767892241926,-1358.36,0.00013698,2]
[401040669,1767892241935,-1358.36,0.00013698,2]
[401040671,1767892241944,-1358.36,0.00013698,2]
[401040673,1767892241954,-1358.36,0.00013698,2]
[401040675,1767892241963,-1358.36,0.00013698,2]
[401040677,1767892241972,-1358.36,0.00013698,2]
[401040679,1767892241981,-1358.36,0.00013698,2]
[401040681,1767892241990,-1358.36,0.00013698,2]
[401040683,1767892241998,-1358.50047477,0.00013698,2]
[401040685,1767892242007,-6016.0240641,0.00013699,2]
[401040686,1767892242016,-2881.087546,0.00013699,2]
[401040688,1767892242025,-500.0,0.00013699,2]
[401040690,1767892242034,-500.0,0.00013699,2]
[401040692,1767892242043,-160.31511176,0.00013699,2]
[401040694,1767892242054,-500.0,0.00013699,2]
[401040696,1767892242064,-500.0,0.00013699,2]
[401040698,1767892242073,-500.0,0.00013699,2]
[401040700,1767892242083,-500.0,0.00013699,2]
[401040702,1767892242094,-500.0,0.00013699,2]
[401040704,1767892242104,-500.0,0.00013699,2]
[401040706,1767892242113,-500.0,0.00013699,2]
[401040708,1767892242123,-500.0,0.00013699,2]
[401040710,1767892242132,-500.0,0.00013699,2]
[401040712,1767892242142,-500.0,0.00013699,2]
[401040714,1767892242151,-500.0,0.00013699,2]
[401040716,1767892242161,-500.0,0.00013699,2]
[401040718,1767892242170,-500.0,0.00013699,2]
[401040720,1767892242179,-500.0,0.00013699,2]
[401040722,1767892242188,-587.90016754,0.00013699,2]
[401040724,1767892242197,-500.0,0.00013699,2]
[401040726,1767892242207,-159.90338543,0.00013699,2]
[401040728,1767892242217,-500.0,0.00013699,2]
[401040730,1767892242226,-500.0,0.00013699,2]
[401040732,1767892242235,-500.0,0.00013699,2]
[401040734,1767892242244,-500.0,0.00013699,2]
[401040736,1767892242254,-165.20381649,0.00013699,2]
[401040738,1767892242267,-500.0,0.00013699,2]
[401040740,1767892242276,-500.0,0.00013699,2]
[401040742,1767892242286,-500.0,0.00013699,2]
[401040744,1767892242295,-346.80702233,0.00013699,2]
[401040746,1767892242306,-500.0,0.00013699,2]
[401040748,1767892242315,-500.0,0.00013699,2]
[401040750,1767892242324,-500.0,0.00013699,2]
[401040752,1767892242332,-500.0,0.00013699,2]
[401040754,1767892242346,-500.0,0.00013699,2]
[401040756,1767892242357,-500.0,0.00013699,2]
[401040758,1767892242366,-500.0,0.00013699,2]
[401040760,1767892242374,-500.0,0.00013699,2]
[401040762,1767892242385,-500.0,0.00013699,2]
[401040764,1767892242394,-500.0,0.00013699,2]
[401040766,1767892242403,-500.0,0.00013699,2]
[401040768,1767892242412,-525.286019,0.00013699,2]
[401040770,1767892242423,-304.24162733,0.00013699,2]
[401040772,1767892242432,-500.0,0.00013699,2]
[401040774,1767892242442,-500.0,0.00013699,2]
[401040775,1767892242451,-500.0,0.00013699,2]
[401040777,1767892242460,-243.13183042,0.00013699,2]
[401040779,1767892242469,-500.0,0.00013699,2]
[401040782,1767892242482,-500.0,0.00013699,2]
[401040784,1767892242491,-417.18064855,0.00013699,2]
[401040786,1767892242500,-500.0,0.00013699,2]
[401040788,1767892242509,-500.0,0.00013699,2]
[401040790,1767892242518,-500.0,0.00013699,2]
[401040792,1767892242527,-500.0,0.00013699,2]
[401040794,1767892242535,-500.0,0.00013699,2]
[401040795,1767892242544,-500.0,0.00013699,2]
[401040797,1767892242553,-500.0,0.00013699,2]
[401040799,1767892242562,-500.0,0.00013699,2]
[401040801,1767892242571,-500.0,0.00013699,2]
[401040803,1767892242580,-500.0,0.00013699,2]
[401040805,1767892242590,-500.0,0.00013699,2]
[401040807,1767892242599,-500.0,0.00013699,2]
[401040809,1767892242608,-500.0,0.00013699,2]
[401040811,1767892242617,-535.32110094,0.00013699,2]
[401040813,1767892242627,-500.0,0.00013699,2]
[401040815,1767892242636,-500.0,0.00013699,2]
[401040817,1767892242645,-500.0,0.00013699,2]
[401040819,1767892242655,-500.0,0.00013699,2]
[401040821,1767892242664,-500.0,0.00013699,2]
[401040822,1767892242673,-159.84215086,0.00013699,2]
[401040824,1767892242684,-500.0,0.00013699,2]
[401040826,1767892242693,-500.0,0.00013699,2]
[401040828,1767892242702,-500.0,0.00013699,2]
[401040830,1767892242712,-500.0,0.00013699,2]
[401040832,1767892242722,-500.0,0.00013699,2]
[401040834,1767892242731,-500.0,0.00013699,2]
[401040836,1767892242740,-158.54413521,0.00013699,2]
[401040838,1767892242750,-500.0,0.00013699,2]
[401040840,1767892242759,-163.82427234,0.00013699,2]
[401040842,1767892242768,-500.0,0.00013699,2]
[401040844,1767892242777,-158.26651658,0.00013699,2]
[401040846,1767892242787,-500.0,0.00013699,2]
[401040848,1767892242797,-500.0,0.00013699,2]
[401040850,1767892242806,-500.0,0.00013699,2]
[401040852,1767892242815,-500.0,0.00013699,2]
[401040854,1767892242826,-340.41437066,0.00013699,2]
[401040856,1767892242835,-500.0,0.00013699,2]
[401040858,1767892242844,-500.97859119,0.00013699,2]
[401040860,1767892242855,-307.90182958,0.00013699,2]
[401040862,1767892242864,-500.0,0.00013699,2]
[401040864,1767892242873,-500.25512227,0.00013699,2]
[401040866,1767892242883,-500.0,0.00013699,2]
[401040868,1767892242892,-500.0,0.00013699,2]
[401040870,1767892242903,-525.26239799,0.00013699,2]
[401040872,1767892242912,-500.0,0.00013699,2]
[401040874,1767892242921,-500.0,0.00013699,2]
[401040876,1767892242930,-500.0,0.00013699,2]
[401040878,1767892242939,-500.0,0.00013699,2]
[401040879,1767892242948,-500.0,0.00013699,2]
[401040881,1767892242957,-2589.26,0.0001382,2]
[401040883,1767892242967,-997.24206877,0.00013821,2]
[401040885,1767892242976,-1000.0,0.00013821,2]
[401040887,1767892242985,-1000.0,0.00013821,2]
[401040889,1767892242994,-1000.0,0.00013821,2]
[401040891,1767892243002,-1000.0,0.00013821,2]
[401040893,1767892243011,-899.90959065,0.00013821,2]
[401040895,1767892243020,-1000.0,0.00013821,2]
[401040897,1767892243029,-1000.0,0.00013821,2]
[401040899,1767892243038,-1000.0,0.00013821,2]
[401040902,1767892243047,-1020.38757488,0.00013821,2]
[401040904,1767892243056,-1000.0,0.00013821,2]
[401040907,1767892243065,-1000.0,0.00013821,2]
[401040910,1767892243074,-1000.0,0.00013821,2]
[401040911,1767892243084,-1000.0,0.00013821,2]
[401040913,1767892243097,-1000.0,0.00013821,2]
[401040915,1767892243108,-1000.0,0.00013821,2]
[401040917,1767892243117,-1000.0,0.00013821,2]
[401040919,1767892243126,-1000.0,0.00013821,2]
[401040921,1767892243135,-1000.0,0.00013821,2]
[401040923,1767892243144,-1000.0,0.00013821,2]
[401040925,1767892243153,-1000.0,0.00013821,2]
[401040927,1767892243162,-1000.0,0.00013821,2]
[401040929,1767892243171,-1000.0,0.00013821,2]
[401040931,1767892243180,-1147.44937683,0.00013821,2]
[401040933,1767892243189,-1000.0,0.00013821,2]
[401040936,1767892243198,-1000.0,0.00013821,2]
[401040939,1767892243207,-1000.0,0.00013821,2]
[401040942,1767892243216,-1000.0,0.00013821,2]
[401040945,1767892243225,-1000.0,0.00013821,2]
[401040948,1767892243234,-1000.0,0.00013821,2]
[401040950,1767892243244,-1000.0,0.00013821,2]
[401040952,1767892243253,-1000.0,0.00013821,2]
[401040954,1767892243263,-1000.0,0.00013821,2]
[401040956,1767892243274,-1000.0,0.00013821,2]
[401040958,1767892243283,-453.31002908,0.00013821,2]
[401040960,1767892243292,-1000.0,0.00013821,2]
[401040962,1767892243301,-1000.0,0.00013821,2]
[401040964,1767892243311,-1000.0,0.00013821,2]
[401040966,1767892243320,-501.77913304,0.00013821,2]
[401040968,1767892243329,-1000.0,0.00013821,2]
[401040970,1767892243338,-1001.21467235,0.00013821,2]
[401040971,1767892243347,-2589.26,0.00013859,2]
[401040973,1767892243358,-5000.0,0.0001386,2]
[401040976,1767892243368,-151.0,0.000139,2]
[401040977,1767892243377,-1000.0,0.00014126,2]
[401040979,1767892243387,-244.0,0.00014126,2]
[401040981,1767892243396,-600.0,0.00014221,2]
[401040983,1767892243405,-2589.26,0.00014246,2]
[401040985,1767892243414,-2589.26,0.00014246,2]
[401040987,1767892243424,-1000.0,0.00014247,2]
[401040989,1767892243434,-1000.0,0.00014247,2]
[401040991,1767892243443,-1111.568419,0.00014247,2]
[401040993,1767892243452,-1000.0,0.00014247,2]
[401040995,1767892243461,-1000.0,0.00014247,2]
[401040997,1767892243470,-1000.0,0.00014247,2]
[401040999,1767892243480,-1000.0,0.00014247,2]
[401041001,1767892243489,-1004.856401,0.00014247,2]
[401041003,1767892243498,-1000.0,0.00014247,2]
[401041005,1767892243507,-502.343773,0.00014247,2]
[401041007,1767892243517,-1000.0,0.00014247,2]
[401041023,1767892243682,-298.48218787,0.00014247,2]
[401041025,1767892243692,-1000.0,0.00014247,2]
[401041027,1767892243702,-252.61198988,0.00014247,2]
[401041029,1767892243712,-1000.0,0.00014247,2]
[401041031,1767892243721,-1000.0,0.00014247,2]
[401041033,1767892243731,-1000.0,0.00014247,2]
[401041035,1767892243740,-1000.0,0.00014247,2]
[401041037,1767892243749,-1000.0,0.00014247,2]
[401041038,1767892243759,-610.31065516,0.00014247,2]
[401041040,1767892243768,-1000.0,0.00014247,2]
[401041042,1767892243780,-1000.0,0.00014247,2]
[401041044,1767892243789,-1000.0,0.00014247,2]
[401041046,1767892243798,-1000.0,0.00014247,2]
[401041048,1767892243807,-1000.0,0.00014247,2]
[401041050,1767892243816,-1000.0,0.00014247,2]
[401041052,1767892243825,-1000.0,0.00014247,2]
[401041054,1767892243844,-1000.0,0.00014247,2]
[401041056,1767892243879,-1000.0,0.00014247,2]
[401041059,1767892243915,-1000.0,0.00014247,2]
[401041062,1767892243947,-1000.0,0.00014247,2]
[401041065,1767892243970,-1000.0,0.00014247,2]
[401041067,1767892243991,-752.51325936,0.00014247,2]
[401041070,1767892244014,-1000.0,0.00014247,2]
[401041072,1767892244035,-1000.0,0.00014247,2]
[401041074,1767892244058,-1000.0,0.00014247,2]
[401041076,1767892244079,-913.35141242,0.00014247,2]
[401041078,1767892244102,-1000.0,0.00014247,2]
[401041080,1767892244136,-1000.0,0.00014247,2]
[401041082,1767892244161,-1000.0,0.00014247,2]
[401041084,1767892244170,-1000.0,0.00014247,2]
[401041086,1767892244179,-1000.0,0.00014247,2]
[401041088,1767892244189,-689.99222472,0.00014247,2]
[401041090,1767892244198,-1000.0,0.00014247,2]
[401041092,1767892244208,-1000.0,0.00014247,2]
[401041094,1767892244217,-1004.01306288,0.00014247,2]
[401041096,1767892244227,-1000.0,0.00014247,2]
[401041097,1767892244236,-310.37151762,0.00014247,2]
[401041099,1767892244245,-1000.0,0.00014247,2]
[401041101,1767892244255,-1000.0,0.00014247,2]
[401041103,1767892244271,-1000.0,0.00014247,2]
[401041105,1767892244280,-1000.0,0.00014247,2]
[401041107,1767892244289,-1000.0,0.00014247,2]
[401041109,1767892244299,-1000.0,0.00014247,2]
[401041111,1767892244309,-268.00171243,0.00014247,2]
[401041113,1767892244318,-1000.0,0.00014247,2]
[401041115,1767892244327,-1000.0,0.00014247,2]
[401041117,1767892244336,-1000.0,0.00014247,2]
[401041118,1767892244347,-1000.0,0.00014247,2]
[401041120,1767892244357,-434.10134692,0.00014247,2]
[401041122,1767892244366,-250.0,0.00014247,2]
[401041124,1767892244375,-1000.0,0.00014247,2]
[401041126,1767892244384,-1000.0,0.00014247,2]
[401041128,1767892244393,-295.77275055,0.00014247,2]
[401041130,1767892244403,-1000.0,0.00014247,2]
[401041132,1767892244412,-443.55206413,0.00014247,2]
[401041134,1767892244422,-1000.0,0.00014247,2]
[401041136,1767892244431,-501.14993942,0.00014247,2]
[401041138,1767892244441,-1000.0,0.00014247,2]
[401041139,1767892244450,-1001.13148191,0.00014247,2]
[401041141,1767892244459,-441.63993024,0.00014247,2]